bitfinex-derivatives/quotes_SOLF0:USTF0_20250127
["timestamp","ask_amount","ask_price","bid_price","bid_amount"]
[1737967365670,0.02947747,223.19,223.1,2.5753]
[1737967365972,4.4841,223.11,223.05,3.22]
[1737967366375,0.03129044,223.1,223.05,3.22]
[1737967367570,0.03129044,223.1,223.02,3.22]
[1737967367971,0.03129044,223.1,223.03,8.6495]
[1737967368271,0.03129044,223.1,223.05,24.76936902]
[1737967368567,279.1919,223.22,223.09,24.76936902]
[1737967368773,279.1919,223.24,223.09,24.76936902]
[1737967369072,279.1919,223.24,223.13,4.4836]
[1737967369273,279.1919,223.24,223.09,24.76936902]
[1737967369468,4.4816,223.23,223.09,24.76936902]
[1737967369670,0.03380664,223.21,223.16,0.03109819]
[1737967369970,4.4828,223.17,223.16,0.03109819]
[1737967370170,0.03380664,223.21,223.03,8.6495]
[1737967370379,279.1919,223.2,223.03,8.6495]
[1737967370566,4.4839,223.12,223.03,8.6495]
[1737967370871,303.96126902,223.19,223.03,8.6495]
[1737967371170,279.1919,223.18,223.05,24.76936902]
[1737967371371,0.03410042,223.13,223.05,24.76936902]
[1737967371771,0.03410042,223.13,223.06,4.485]
[1737967372070,0.03410042,223.13,223.05,24.76936902]
[1737967372473,0.03410042,223.13,223.09,24.76936902]
[1737967372769,55.79579864,223.41,223.09,24.78517558]
[1737967372770,281.999,223.29,223.09,24.78517558]
[1737967372964,4.4808,223.28,223.17,4.4828]
[1737967373169,281.999,223.29,223.17,3.24]
[1737967373368,279.1919,223.29,223.17,3.24]
[1737967373569,4.4809,223.27,223.17,9.0891]
[1737967373870,0.03269624,223.25,223.21,0.03334705]
[1737967374472,4.4816,223.23,223.21,0.03334705]
[1737967374673,0.03269624,223.25,223.21,0.03334705]
[1737967374869,4.4815,223.24,223.21,0.03334705]
[1737967375173,0.03269624,223.25,223.21,0.03334705]
[1737967375774,4.4817,223.23,223.21,0.03334705]
[1737967376072,0.03269624,223.25,223.11,3.3646]
[1737967376275,282.2392,223.29,223.11,3.3646]
[1737967376869,282.2392,223.29,223.1,4.4842]
[1737967376870,40.25396848,223.26,223.09,5.9078]
[1737967377076,4.4827,223.18,223.09,10.3922]
[1737967377371,0.03323162,223.2,223.09,5.9078]
[1737967378966,4.4831,223.16,223.06,4.4849]
[1737967379173,4.4831,223.16,223.06,7.7049]
[1737967379377,0.03333827,223.13,223.06,7.7049]
[1737967380275,0.03333827,223.13,223.06,3.22]
[1737967380474,279.1919,223.23,223.08,40.25396848]
[1737967381074,4.4822,223.2,223.08,40.25396848]
[1737967381574,4.4827,223.18,223.08,40.25396848]
[1737967381875,0.03412474,223.16,223.12,0.03252039]
[1737967383876,0.03412474,223.16,223.12,4.51632039]
[1737967384076,279.1919,223.27,223.12,40.28648887]
[1737967384277,4.4802,223.31,223.21,4.482]
[1737967384474,279.1919,223.34,223.21,3.22]
[1737967384677,279.1919,223.34,223.22,3.2791]
[1737967385178,0.03119633,223.28,223.24,0.03180812]
[1737967386274,4.4811,223.26,223.24,0.03180812]
[1737967386978,279.1919,223.25,223.15,3.2791]
[1737967387276,40.25396848,223.23,223.01,83.78]
[1737967387576,40.25396848,223.19,223.02,0.78017563]
[1737967387770,40.25396848,223.19,223.01,83.78]
[1737967387975,4.4838,223.13,223.01,83.78]
[1737967388178,279.1919,223.18,223.02,0.78029742]
[1737967388375,0.03432757,223.12,223.08,0.02972076]
[1737967388571,279.1919,223.26,223.08,40.25396848]
[1737967388871,279.1919,223.25,223.05,5.6166]
[1737967389071,288.0912,223.24,223.05,5.6166]
[1737967389275,288.0912,223.24,223.05,8.1997]
[1737967389474,4.4828,223.18,223.05,8.1997]
[1737967389777,0.03371782,223.17,223.12,0.03078304]
[1737967391389,279.1919,223.16,223.12,8.304e-05]
[1737967391985,4.4836,223.13,223.12,8.304e-05]
[1737967392885,4.4859,223.02,222.96,4.487]
[1737967393086,292.0,223.01,222.88,5.7496]
[1737967393287,292.0,223.0,222.88,5.7496]
[1737967393585,292.0,222.99,222.88,5.7496]
[1737967394081,0.0305371,222.96,222.91,0.03143623]
[1737967394285,40.25396848,223.11,222.91,40.28540471]
[1737967394479,4.4854,223.05,222.92,4.4878]
[1737967394683,294.7817,223.1,222.92,4.4878]
[1737967394887,294.7817,223.1,222.88,5.7496]
[1737967395083,40.25396848,223.05,222.87,40.25396848]
[1737967395384,292.0,223.09,222.94,0.03261496]
[1737967395385,0.02985664,222.98,222.94,0.03261496]
[1737967395582,0.02985664,222.98,222.87,40.25396848]
[1737967395779,4.4859,223.02,222.94,0.03302386]
[1737967395985,0.03129203,222.98,222.94,0.03302386]
[1737967396184,0.03129203,222.98,222.87,40.25396848]
[1737967396381,4.4858,223.03,222.88,4.4886]
[1737967396589,0.03164473,222.95,222.86,3.24]
[1737967396888,0.02879297,222.93,222.86,3.24]
[1737967397092,0.02879297,222.93,222.88,0.03018426]
[1737967397387,0.03131641,222.92,222.88,0.03018426]
[1737967397779,2.8019,223.0,222.85,3.1282]
[1737967397979,0.03140517,222.92,222.89,4.4884]
[1737967398184,0.03140517,222.92,222.88,0.03143636]
[1737967398384,292.0,223.04,222.88,0.03143636]
[1737967398585,0.0320268,222.92,222.88,4.51993636]
[1737967398782,0.0320268,222.92,222.85,3.1282]
[1737967398783,292.0,223.03,222.87,40.25396848]
[1737967398988,292.0,223.03,222.94,0.03018576]
[1737967399182,0.03266017,222.97,222.96,0.02956773]
[1737967399390,292.0,223.02,222.96,0.02956773]
[1737967399585,0.03404192,222.99,222.96,0.02956773]
[1737967404187,292.0,222.98,222.96,0.02956773]
[1737967404989,4.4869,222.97,222.96,0.02956773]
[1737967406482,292.0,222.98,222.96,0.02956773]
[1737967407086,4.4869,222.97,222.96,0.02956773]
[1737967407389,292.0,222.98,222.96,0.02956773]
[1737967407697,292.0,222.97,222.8,23.3799981]
[1737967407891,292.0,222.96,222.8,23.3799981]
[1737967408086,4.4879,222.93,222.83,4.4896]
[1737967408294,4.4879,222.93,222.8,23.3799981]
[1737967408589,4.4879,222.92,222.82,4.4897]
[1737967408795,0.03041582,222.89,222.84,0.0322565]
[1737967410090,292.0,223.01,222.88,38.00627923]
[1737967410286,292.0,223.03,222.88,38.00627923]
[1737967410493,4.4861,223.01,222.89,11.22897257]
[1737967410795,292.0,223.03,222.89,10.4482]
[1737967411197,292.0,223.03,222.89,5.9599]
[1737967411497,0.03096187,222.98,222.94,0.03078966]
[1737967412696,292.0,222.97,222.85,3.24]
[1737967412894,294.6974,222.97,222.8,38.00627923]
[1737967413096,292.0,222.96,222.8,38.00627923]
[1737967413487,292.0,222.96,222.81,0.78103202]
[1737967413796,4.4877,222.93,222.83,4.4897]
[1737967413996,0.03409187,222.91,222.86,0.03307168]
[1737967414496,4.4884,222.9,222.86,0.03307168]
[1737967414795,0.03409187,222.91,222.86,0.03307168]
[1737967416997,0.03409187,222.91,222.86,7.76197168]
[1737967417395,0.03409187,222.91,222.9,4.4883]
[1737967417695,292.0,223.08,222.88,38.00627923]
[1737967417900,4.4879,222.92,222.84,3.24]
[1737967418099,38.00627923,223.02,222.84,3.24]
[1737967418100,292.0,223.01,222.84,3.24]
[1737967418295,38.00627923,222.98,222.84,3.24]
[1737967418498,4.4876,222.94,222.84,3.24]
[1737967418795,292.03399781,222.93,222.89,0.03301448]
[1737967419789,296.52169781,222.93,222.89,0.03301448]
[1737967420495,292.03399781,222.93,222.89,0.03301448]
[1737967421695,292.03399781,222.93,222.89,4.52131448]
[1737967421900,0.03399781,222.93,222.89,0.03301448]
[1737967423000,0.03399781,222.93,222.89,4.52141448]
[1737967423198,0.03399781,222.93,222.89,0.03301448]
[1737967423398,0.03399781,222.93,222.9,3.0999]
[1737967423598,292.0,223.01,222.92,4.4879]
[1737967423902,5.7716,223.04,222.9,3.0999]
[1737967424603,4.4863,223.0,222.9,7.588]
[1737967424901,0.03371466,222.99,222.95,0.02970908]
[1737967425098,4.4871,222.96,222.95,0.02970908]
[1737967427606,0.03371466,222.99,222.85,3.22]
[1737967427806,292.0,222.98,222.85,3.22]
[1737967428002,296.4868,222.98,222.85,3.22]
[1737967428603,0.03344852,222.94,222.89,0.02939185]
[1737967429102,0.03344852,222.94,222.91,4.488]
[1737967429404,0.03344852,222.94,222.89,4.51769185]
[1737967429807,0.03344852,222.94,222.89,0.02939185]
[1737967430406,0.03344852,222.94,222.92,4.4877]
[1737967431306,0.03344852,222.94,222.93,4.4877]
[1737967431508,0.03344852,222.94,222.89,0.02939185]
[1737967432807,292.0,223.07,222.93,23.37663643]
[1737967433000,292.0,223.07,222.97,23.37663643]
[1737967433305,292.0,223.07,222.93,23.37663643]
[1737967433508,296.4849,223.07,222.96,4.4869]
[1737967433806,292.0,223.07,222.97,3.2]
[1737967434003,0.03191419,223.04,222.99,0.02997122]
[1737967435008,292.0,223.03,222.87,5.857]
[1737967435201,292.0,223.02,222.81,23.37663643]
[1737967435407,292.0,223.01,222.82,0.78100264]
[1737967435604,292.0,223.01,222.83,3.2]
[1737967436117,292.0,223.01,222.84,4.4894]
[1737967436415,0.03254342,222.94,222.9,0.03087821]
[1737967436708,0.03254342,222.94,222.91,4.4879]
[1737967436909,0.03254342,222.94,222.9,0.03087821]
[1737967437102,0.03254342,222.94,222.9,4.51897821]
[1737967437302,0.03254342,222.94,222.9,0.03087821]
[1737967437609,0.03254342,222.94,222.9,4.51897821]
[1737967437810,0.03254342,222.94,222.9,0.03087821]
[1737967438211,0.03254342,222.94,222.91,4.4879]
[1737967438707,0.03254342,222.94,222.9,0.03087821]
[1737967441913,0.03254342,222.94,222.9,9.44268463]
[1737967442113,292.0,223.1,222.93,23.37663643]
[1737967442307,300.5601,223.16,222.94,0.78060032]
[1737967442508,292.0,223.15,222.97,23.37663643]
[1737967442810,292.0,223.15,223.01,23.37663643]
[1737967443016,2.5779,223.16,223.01,23.37663643]
[1737967443317,0.03389828,223.1,223.06,0.03345167]
[1737967444812,483.0,223.22,223.06,0.03345167]
[1737967445117,292.0,223.28,223.17,23.37663643]
[1737967445318,5.7727,223.32,223.18,3.22]
[1737967445514,5.7727,223.32,223.18,6.538]
[1737967446018,292.0,223.31,223.18,3.22]
[1737967446216,0.031793,223.27,223.23,0.0333726]
[1737967447517,292.0,223.26,223.18,3.22]
[1737967447719,292.0,223.25,223.18,3.22]
[1737967448318,4.482,223.22,223.18,3.22]
[1737967448715,292.0,223.25,223.18,3.25044627]
[1737967448921,0.03021373,223.22,223.18,3.25044627]
[1737967449620,0.03021373,223.22,223.2,4.4822]
[1737967449814,0.03021373,223.22,223.18,3.25044627]
[1737967451826,0.03021373,223.22,223.18,0.03044627]
[1737967453424,0.03021373,223.22,223.18,4.51294627]
[1737967453624,0.03021373,223.22,223.18,0.03044627]
[1737967460125,0.03021373,223.22,223.21,4.482]
[1737967460525,0.03021373,223.22,223.18,0.03044627]
[1737967461117,0.03021373,223.22,223.18,4.51304627]
[1737967461321,0.03021373,223.22,223.18,0.03044627]
[1737967461526,0.03021373,223.22,223.18,3.11014627]
[1737967461724,0.03021373,223.22,223.18,5.82684627]
[1737967462026,0.03021373,223.22,223.18,10.30924627]
[1737967462217,0.03021373,223.22,223.18,5.82684627]
[1737967462420,0.03021373,223.22,223.18,0.03044627]
[1737967462617,4.4821,223.21,223.18,0.03044627]
[1737967462820,0.03021373,223.22,223.18,0.03044627]
[1737967464317,0.03021373,223.22,223.07,3.2]
[1737967464525,292.0,223.21,223.07,3.2]
[1737967464720,292.0,223.2,223.07,3.2]
[1737967465324,292.0,223.2,223.07,7.6847]
[1737967465525,0.03003022,223.16,223.11,0.02906097]
[1737967468324,292.0,223.27,223.13,23.37663643]
[1737967468530,191.0,223.28,223.21,23.37663643]
[1737967468833,191.0,223.28,223.21,26.57663643]
[1737967469727,0.03133776,223.27,223.22,0.03042601]
[1737967472332,4.4813,223.25,223.22,0.03042601]
[1737967472630,0.03133776,223.27,223.22,0.03042601]
[1737967473928,4.4825,223.19,223.11,4.4839]
[1737967474134,292.0,223.25,223.06,3.18]
[1737967474432,292.0,223.24,223.06,3.18]
[1737967474932,292.0,223.24,223.05,31.91653643]
[1737967475232,0.02996957,223.17,223.13,0.02915425]
[1737967475624,4.4831,223.16,223.13,0.02915425]
[1737967475831,0.02996957,223.17,223.13,0.02915425]
[1737967476434,4.4834,223.15,223.13,0.02915425]
[1737967476630,0.02996957,223.17,223.13,0.02915425]
[1737967477636,4.4833,223.15,223.13,0.02915425]
[1737967478633,4.4834,223.14,223.13,0.02915425]
[1737967479531,4.4843,223.1,223.03,83.92]
[1737967479829,292.0,223.13,223.03,88.4055]
[1737967480035,4.4842,223.1,223.03,83.92]
[1737967480235,292.0,223.13,223.03,83.92]
[1737967480435,292.0,223.13,223.03,88.4057]
[1737967480632,292.0,223.13,223.06,0.02881587]
[1737967480833,4.51533756,223.1,223.06,0.02881587]
[1737967482536,4.4845,223.09,223.06,0.02881587]
[1737967482729,0.03093756,223.1,223.06,0.02881587]
[1737967483640,4.4848,223.08,223.06,0.02881587]
[1737967483835,0.03093756,223.1,223.06,0.02881587]
[1737967484238,0.03093756,223.1,222.86,83.86]
[1737967484239,292.0,223.09,222.86,83.86]
[1737967484431,292.0,223.08,222.95,4.4871]
[1737967484631,292.0,223.08,222.95,5.26753142]
[1737967484938,4.4862,223.01,222.95,4.4871]
[1737967485235,4.4863,223.01,222.91,3.16]
[1737967485435,292.0,223.07,222.91,3.16]
[1737967485637,0.03138491,223.0,222.96,0.0299747]
[1737967486028,4.4861,223.01,222.91,3.16]
[1737967486331,0.02957776,223.0,222.96,0.02952617]
[1737967486929,4.51587776,223.0,222.96,0.02952617]
[1737967487130,0.02957776,223.0,222.96,0.02952617]
[1737967487735,0.02957776,223.0,222.99,4.4865]
[1737967488338,292.0,223.13,223.04,4.4854]
[1737967488537,5.8024,223.14,223.02,23.37663643]
[1737967488732,4.4839,223.12,223.02,23.37663643]
[1737967488939,4.4839,223.12,223.04,4.4854]
[1737967489136,4.4849,223.07,222.98,23.37663643]
[1737967489338,5.8024,223.14,222.98,23.37663643]
[1737967489640,4.4861,223.01,223.0,0.02960024]
[1737967490136,292.0,223.04,222.94,0.16053]
[1737967490341,4.4858,223.03,222.98,0.03042874]
[1737967490732,292.0,223.04,222.98,0.03042874]
[1737967491036,0.03127321,223.03,222.98,0.03042874]
[1737967491236,0.03127321,223.03,222.98,23.40706517]
[1737967491432,0.03127321,223.03,223.0,4.4861]
[1737967491640,0.03127321,223.03,222.98,26.77256517]
[1737967491840,0.03127321,223.03,222.98,3.39592874]
[1737967493043,0.03127321,223.03,222.98,0.03042874]
[1737967493338,4.4873,222.95,222.94,0.16053]
[1737967495740,0.03088881,222.97,222.92,0.02911607]
[1737967495946,315.37663643,222.96,222.74,26.53663643]
[1737967496243,23.37663643,222.96,222.74,23.37663643]
[1737967496843,4.488,222.92,222.86,4.489]
[1737967497147,0.02849603,222.89,222.79,5.8136]
[1737967497347,0.02849603,222.89,222.8,0.78102907]
[1737967497748,0.02849603,222.89,222.79,5.8136]
[1737967498247,0.02849603,222.89,222.63,10.85908538]
[1737967498248,292.0,222.88,222.71,3.16]
[1737967498447,292.0,222.87,222.72,0.78131447]
[1737967498948,0.02891164,222.82,222.71,2.5583]
[1737967500249,4.4903,222.8,222.71,2.5583]
[1737967500450,0.02891164,222.82,222.71,2.5583]
[1737967501050,4.4904,222.8,222.71,7.0503]
[1737967501250,0.02891164,222.82,222.71,2.5583]
[1737967501753,0.02891164,222.82,222.73,4.4916]
[1737967502953,0.02891164,222.82,222.71,2.5583]
[1737967503151,0.02891164,222.82,222.78,23.37663643]
[1737967503450,4.4883,222.9,222.81,4.4899]
[1737967503750,292.0,222.94,222.79,5.6444]
[1737967504347,4.4885,222.89,222.81,4.4901]
[1737967504546,0.03154642,222.89,222.84,0.0288169]
[1737967504753,4.489,222.87,222.84,0.0288169]
[1737967505351,0.03154642,222.89,222.84,0.0288169]
[1737967505852,292.0,222.88,222.84,0.0288169]
[1737967506050,292.0,222.88,222.72,5.6444]
[1737967506254,292.0,222.87,222.72,5.6444]
[1737967506459,292.0,222.87,222.74,4.4915]
[1737967506847,292.0,222.87,222.72,5.6444]
[1737967507455,4.4903,222.8,222.75,4.4912]
[1737967507956,4.4903,222.8,222.72,5.6444]
[1737967508358,292.0,222.81,222.62,107.27663643]
[1737967508557,292.0,222.8,222.63,12.20708099]
[1737967508759,292.0,222.8,222.66,23.37663643]
[1737967508951,0.03132461,222.74,222.71,4.4919]
[1737967509253,0.03132461,222.74,222.66,23.37663643]
[1737967509650,2.6062,222.88,222.7,23.37663643]
[1737967509857,4.4889,222.87,222.77,4.4909]
[1737967510050,4.4889,222.87,222.76,3.14]
[1737967510256,23.37663643,222.92,222.76,3.14]
[1737967510658,23.37663643,222.88,222.76,3.14]
[1737967510857,0.03012949,222.86,222.81,0.02833707]
[1737967511153,292.0,222.85,222.68,3.14]
[1737967511354,295.3098,222.84,222.68,3.14]
[1737967511555,4.4904,222.8,222.71,4.4919]
[1737967511755,295.3098,222.84,222.68,3.14]
[1737967512055,292.0,222.83,222.68,3.14]
[1737967512561,0.03066559,222.78,222.63,5.7202]
[1737967512760,292.0,222.77,222.63,3.0673]
[1737967512955,137.0,222.78,222.62,83.9]
[1737967513258,0.02885395,222.72,222.62,83.9]
[1737967514057,4.14385395,222.72,222.65,4.4933]
[1737967514254,137.0,222.78,222.62,83.9]
[1737967514956,137.0,222.78,222.59,8.6793]
[1737967515351,0.03029409,222.71,222.66,0.03124149]
[1737967517061,4.52249409,222.71,222.66,0.03124149]
[1737967517261,0.03029409,222.71,222.66,0.03124149]
[1737967517462,0.03029409,222.71,222.67,4.4929]
[1737967517760,0.03029409,222.71,222.66,0.03124149]
[1737967518057,0.03029409,222.71,222.68,4.4927]
[1737967518260,0.03029409,222.71,222.66,0.03124149]
[1737967519059,0.03029409,222.71,222.7,4.4923]
[1737967519257,2.669,222.83,222.66,0.03124149]
[1737967519561,2.669,222.83,222.66,23.37663643]
[1737967519863,2.5654,222.87,222.7,23.37663643]
[1737967520062,137.0,222.9,222.74,23.37663643]
[1737967520361,6.039,222.99,222.82,23.37663643]
[1737967520862,4.4884,222.9,222.81,4.4899]
[1737967521059,0.03210297,222.93,222.78,23.37663643]
[1737967521357,4.4885,222.89,222.88,8.297e-05]
[1737967521562,137.0,222.91,222.73,23.37663643]
[1737967521758,23.37663643,222.92,222.73,23.37663643]
[1737967522561,137.0,222.98,222.8,0.03283108]
[1737967522562,0.03296222,222.85,222.8,0.03283108]
[1737967522965,137.0,222.95,222.77,23.37663643]
[1737967523263,0.02911371,222.85,222.8,0.03431859]
[1737967523665,6.039,222.99,222.81,23.37663643]
[1737967523859,6.039,222.99,222.82,5.3126]
[1737967524162,4.487,222.97,222.88,4.4886]
[1737967524559,4.4871,222.96,222.88,4.4886]
[1737967524758,2.5654,223.0,222.85,23.37663643]
[1737967525063,0.03443752,222.95,222.9,0.0292931]
[1737967525267,4.4879,222.92,222.9,0.0292931]
[1737967525967,4.4879,222.92,222.9,9.31e-05]
[1737967527767,0.03443752,222.95,222.9,9.31e-05]
[1737967529467,0.03443752,222.95,222.9,23.37672953]
[1737967529771,2.5934,223.11,222.94,23.37663643]
[1737967529967,2.5934,223.11,222.95,2.6225]
[1737967530365,2.5934,223.11,222.98,23.37663643]
[1737967530874,0.03173626,223.06,223.02,23.40561882]
[1737967531073,5.82293992,223.13,223.02,23.40561882]
[1737967531273,5.82293992,223.13,223.03,2.6002]
[1737967531573,2.5934,223.17,223.03,2.6002]
[1737967532274,0.03289182,223.12,223.08,0.02891523]
[1737967532469,23.38775191,223.22,223.1,23.37663643]
[1737967532664,23.38775191,223.22,223.14,23.37663643]
[1737967532866,23.38775191,223.22,223.18,23.37663643]
[1737967533072,46.83949864,223.24,223.19,7.2032]
[1737967533268,46.83949864,223.24,223.19,2.7208]
[1737967533871,60.91783706,223.25,223.22,23.37663643]
[1737967534070,89.75819173,223.27,223.22,26.57663643]
[1737967534279,71.36209173,223.27,223.26,23.37663643]
[1737967534573,17.82056144,223.37,223.26,23.37663643]
[1737967534770,22.29946144,223.37,223.26,23.37663643]
[1737967534971,17.82056144,223.37,223.26,23.37663643]
[1737967535178,17.82056144,223.37,223.3,23.37663643]
[1737967535375,0.02866283,223.34,223.29,0.03366492]
[1737967535579,17.82056144,223.37,223.35,23.37663643]
[1737967535881,17.82056144,223.37,223.28,23.37663643]
[1737967536276,4.4789,223.37,223.24,3.22]
[1737967536578,137.0,223.44,223.24,3.22]
[1737967536781,4.4801,223.31,223.28,0.03354349]
[1737967536978,0.03243126,223.33,223.28,0.03354349]
[1737967537173,137.0,223.42,223.24,3.22]
[1737967537373,4.4789,223.37,223.24,3.22]
[1737967537578,0.029525,223.33,223.28,0.03271874]
[1737967537978,40.22659589,223.38,223.24,3.22]
[1737967538176,5.8795,223.37,223.19,2.7208]
[1737967538383,0.03038038,223.33,223.28,0.0324467]
[1737967538573,0.03038038,223.33,223.28,4.67e-05]
[1737967538774,2.69048038,223.33,223.28,4.67e-05]
[1737967538985,4.4803,223.3,223.28,4.67e-05]
[1737967539681,4.48,223.32,223.28,4.67e-05]
[1737967539884,0.03038038,223.33,223.28,4.67e-05]
[1737967540379,4.4803,223.3,223.28,4.67e-05]
[1737967541183,0.03038038,223.33,223.28,4.67e-05]
[1737967541481,0.03038038,223.33,223.28,3.2200467]
[1737967541686,4.4776,223.44,223.29,42.94289589]
[1737967542181,4.4776,223.44,223.32,4.4798]
[1737967542780,4.4771,223.46,223.34,4.4794]
[1737967542980,6.0071,223.49,223.36,0.02847273]
[1737967542981,0.02879445,223.4,223.36,0.02847273]
[1737967543381,4.4777,223.43,223.36,0.02847273]
[1737967543586,6.0071,223.49,223.36,0.02847273]
[1737967543785,0.0302476,223.4,223.36,0.02847273]
[1737967543986,4.4775,223.44,223.36,0.02847273]
[1737967544486,0.03139987,223.4,223.36,0.02847273]
[1737967544783,0.03139987,223.4,223.37,40.22659589]
[1737967545184,3.3838,223.49,223.37,40.22659589]
[1737967545484,4.476,223.52,223.37,40.22659589]
[1737967545684,3.0602,223.56,223.46,4.4769]
[1737967545887,4.4755,223.54,223.44,3.22]
[1737967546087,3.0602,223.56,223.44,3.22]
[1737967546584,0.02915417,223.51,223.47,0.02827146]
[1737967547378,4.4765,223.49,223.47,0.02827146]
[1737967548086,4.50535417,223.51,223.47,0.02827146]
[1737967548382,137.0,223.6,223.47,0.02827146]
[1737967548590,4.4755,223.54,223.47,0.02827146]
[1737967548787,137.0,223.61,223.47,0.02827146]
[1737967548988,137.0,223.61,223.44,3.22]
[1737967549185,4.4761,223.51,223.44,3.22]
[1737967549388,137.0,223.6,223.44,3.22]
[1737967549685,0.03286507,223.5,223.45,0.03278948]
[1737967550084,137.0,223.58,223.44,3.22]
[1737967550280,40.22659589,223.62,223.45,0.03028332]
[1737967550490,0.03285801,223.5,223.45,0.03028332]
[1737967550691,137.0,223.63,223.46,40.22659589]
[1737967550885,3.0602,223.64,223.46,40.22659589]
[1737967551085,0.02936862,223.5,223.46,40.22659589]
[1737967551285,4.4745,223.59,223.46,40.22659589]
[1737967551489,0.03074986,223.5,223.46,40.25659854]
[1737967551685,0.03074986,223.5,223.49,4.4764]
[1737967551985,0.03105314,223.52,223.47,0.03045743]
[1737967552291,137.0,223.63,223.44,3.22]
[1737967552492,0.02897931,223.52,223.47,0.02934138]
[1737967552793,4.4765,223.49,223.4,3.22]
[1737967552994,0.03108251,223.52,223.47,0.03364586]
[1737967553296,4.4747,223.58,223.46,40.22659589]
[1737967553594,3.0602,223.64,223.46,40.22659589]
[1737967553795,4.474,223.62,223.5,4.4762]
[1737967554093,3.0602,223.64,223.46,40.22659589]
[1737967554293,4.4754,223.54,223.44,4.4774]
[1737967554495,0.03114632,223.58,223.42,40.22659589]
[1737967554690,137.0,223.62,223.47,0.03447328]
[1737967554885,0.03275372,223.52,223.47,0.03447328]
[1737967555089,137.0,223.62,223.42,40.22659589]
[1737967555297,0.03448598,223.52,223.47,0.02987793]
[1737967555796,0.03448598,223.52,223.39,2.7709]
[1737967555797,40.22659589,223.61,223.42,40.22659589]
[1737967555995,0.03266774,223.52,223.47,0.02981211]
[1737967556397,0.03266774,223.52,223.44,4.4773]
[1737967556597,0.03266774,223.52,223.47,0.03253181]
[1737967557096,4.50856774,223.52,223.47,0.03253181]
[1737967557295,0.03266774,223.52,223.47,0.03253181]
[1737967559998,0.00799539,223.52,223.47,4.50923181]
[1737967560395,0.00799539,223.52,223.47,0.03253181]
[1737967561098,4.4761,223.51,223.47,0.03253181]
[1737967561294,7.7039,223.51,223.47,0.03253181]
[1737967561492,4.4766,223.48,223.47,0.03253181]
[1737967561699,193.6405,223.5,223.3,40.22659589]
[1737967561899,327.97532974,223.49,223.3,43.44659589]
[1737967562097,327.97532974,223.48,223.28,3.22]
[1737967562303,330.78582974,223.48,223.28,3.22]
[1737967562498,330.78582974,223.48,223.3,40.22659589]
[1737967562700,4.4793,223.35,223.26,40.22659589]
[1737967562909,0.03189056,223.41,223.22,43.02379589]
[1737967563103,3.3138,223.34,223.22,43.02379589]
[1737967563303,3.3138,223.34,223.26,40.22659589]
[1737967563503,331.28912974,223.43,223.26,40.22659589]
[1737967563703,190.97532974,223.42,223.26,40.22659589]
[1737967563898,4.4783,223.4,223.29,4.4804]
[1737967564109,0.03001313,223.36,223.18,127.36659589]
[1737967564306,190.97532974,223.35,223.2,184.63814484]
[1737967564611,190.97532974,223.35,223.22,40.22659589]
[1737967564612,2.8105,223.34,223.22,40.22659589]
[1737967565003,190.97532974,223.33,223.2,184.63814484]
[1737967565409,0.03305107,223.29,223.24,0.02963081]
[1737967566310,195.45612974,223.28,223.2,184.63814484]
[1737967566506,0.03305107,223.29,223.2,183.80959089]
[1737967566903,107.08205959,223.39,223.2,183.80959089]
[1737967567709,40.22659589,223.36,223.2,183.80959089]
[1737967568205,4.45553274,223.29,223.26,0.02966874]
[1737967568403,0.0325833,223.3,223.2,183.80959089]
[1737967568609,4.4817,223.23,223.2,183.80959089]
[1737967568809,327.97532974,223.29,223.2,166.02629089]
[1737967569009,368.20192563,223.28,223.2,160.94549089]
[1737967569210,4.482,223.22,223.2,160.94549089]
[1737967569407,137.0,223.27,223.15,184.63814484]
[1737967569604,0.02866,223.23,223.19,0.03159941]
[1737967570012,4.4825,223.19,223.15,184.63814484]
[1737967570219,137.0,223.22,223.15,184.63814484]
[1737967570514,4.4829,223.17,223.15,178.74344484]
[1737967570715,190.97532974,223.21,223.07,3.24]
[1737967571220,0.02948012,223.16,223.12,0.0299701]
[1737967572221,327.97532974,223.15,223.02,178.74344484]